bitfinex/quotes_ETHUSD_20250726
["timestamp","ask_amount","ask_price","bid_price","bid_amount"]
[1753557615413,11.50020493,3748.4,3748.3,0.001]
[1753557615935,41.50020493,3748.4,3748.3,0.001]
[1753557617813,42.05020493,3748.4,3748.3,0.001]
[1753557618019,42.18380493,3748.4,3748.3,0.001]
[1753557618502,41.71220493,3748.4,3748.0,0.001]
[1753557618702,41.71220493,3748.4,3748.0,1e-08]
[1753557618703,10.83669233,3748.1,3748.0,1e-08]
[1753557618940,45.19962404,3748.1,3748.0,1e-08]
[1753557619123,44.95169233,3748.1,3748.0,1e-08]
[1753557619329,46.12801938,3748.1,3748.0,1e-08]
[1753557620246,46.32865351,3748.1,3748.0,1e-08]
[1753557620549,37.01928964,3748.0,3747.9,1e-08]
[1753557620705,38.19561669,3748.0,3747.9,1e-08]
[1753557622344,37.01957442,3747.6,3747.1,0.001]
[1753557622547,41.38170147,3747.6,3747.1,0.001]
[1753557622717,41.51530147,3747.6,3747.1,0.001]
[1753557622912,42.44350147,3747.6,3747.1,0.001]
[1753557623956,12.44350147,3747.6,3747.1,0.001]
[1753557624111,42.44350147,3747.6,3747.1,0.001]
[1753557625614,11.51530147,3747.6,3747.1,0.001]
[1753557625853,11.51530147,3747.6,3747.5,0.467]
[1753557626738,11.51530147,3747.6,3747.5,0.001]
[1753557627269,6.60010147,3747.6,3747.5,0.467]
[1753557627429,10.71410147,3747.6,3747.5,0.467]
[1753557627882,6.60010147,3747.6,3747.5,0.467]
[1753557628083,10.71310147,3747.6,3747.5,0.467]
[1753557629267,0.24812705,3747.6,3747.5,0.467]
[1753557629566,2.66806967,3748.1,3747.5,1.0444]
[1753557629774,3.0,3747.9,3747.7,0.1336]
[1753557629939,3.0,3747.9,3747.8,0.9098]
[1753557630264,4.36262224,3747.9,3747.8,0.9098]
[1753557630955,7.36262224,3747.9,3747.8,0.9098]
[1753557632769,3.24862224,3747.9,3747.8,0.9098]
[1753557632975,0.24862224,3747.9,3747.8,0.9098]
[1753557633273,0.24893195,3748.4,3748.0,2.66803614]
[1753557633438,4.113,3748.3,3748.1,0.9098]
[1753557633767,6.408,3748.6,3748.5,0.1336]
[1753557633947,10.77194065,3748.6,3748.5,0.9098]
[1753557634147,13.77194065,3748.6,3748.5,1.0434]
[1753557634382,13.77194065,3748.6,3748.5,0.1336]
[1753557634587,3.0,3748.5,3748.4,0.1336]
[1753557635572,3.0,3748.5,3748.4,0.5996]
[1753557636229,3.0,3748.5,3747.9,0.7915]
[1753557636436,7.113,3748.4,3748.3,0.1336]
[1753557637168,7.113,3748.4,3748.3,0.5996]
[1753557646480,7.105,3748.2,3748.1,1.6815]
[1753557647002,7.105,3748.2,3748.1,1.238]
[1753557648201,3.0,3748.2,3748.1,1.238]
[1753557648514,7.104,3748.2,3748.1,1.6815]
[1753557648722,7.105,3748.2,3748.1,4.78458458]
[1753557649386,7.105,3748.2,3748.1,4.34951846]
[1753557651919,3.0,3748.2,3748.1,4.34951846]
[1753557652120,7.104,3748.2,3748.1,4.34951846]
[1753557654952,7.101,3748.2,3748.1,4.34951846]
[1753557655395,7.1,3748.2,3748.1,4.48311846]
[1753557656062,7.1,3748.2,3748.1,1.8151]
[1753557656416,7.1,3748.2,3748.1,1.3716]
[1753557656744,7.1,3748.2,3748.1,4.03961846]
[1753557657918,7.1,3748.2,3748.1,1.3716]
[1753557658318,7.1,3748.2,3748.1,4.03961846]
[1753557659345,7.098,3748.2,3748.1,4.03961846]
[1753557660111,7.098,3748.2,3748.1,1.3716]
[1753557660316,3.0,3748.2,3748.1,4.03961846]
[1753557660512,7.097,3748.2,3748.1,4.03961846]
[1753557660753,7.097,3748.2,3748.1,1.3716]
[1753557660953,7.097,3748.2,3748.1,0.9202]
[1753557661356,7.097,3748.2,3748.1,3.58821846]
[1753557661524,7.097,3748.2,3748.1,4.03961846]
[1753557661723,7.099,3748.2,3748.1,4.03961846]
[1753557661952,7.099,3748.2,3748.1,3.58821846]
[1753557662132,7.099,3748.2,3748.1,4.03961846]
[1753557666756,7.099,3748.2,3748.1,3.78961846]
[1753557672369,7.099,3748.2,3748.1,0.0336]
[1753557673773,7.099,3748.2,3748.1,2.70161846]
[1753557673943,7.099,3748.2,3748.1,0.0336]
[1753557675276,7.099,3748.2,3748.1,2.70161846]
[1753557675457,7.099,3748.2,3748.1,3.15661846]
[1753557675845,7.099,3748.2,3748.1,0.4886]
[1753557677784,7.099,3748.2,3748.1,0.0336]
[1753557681993,3.9493,3748.2,3748.1,0.0336]
[1753557682301,8.0303,3748.2,3748.1,0.0336]
[1753557683361,8.0303,3748.2,3748.1,0.0346]
[1753557689888,8.0273,3748.2,3748.1,0.0346]
[1753557696132,9.74794728,3748.2,3748.1,0.0346]
[1753557696336,10.69524728,3748.2,3748.1,0.0346]
[1753557699130,8.0273,3748.2,3748.1,0.0346]
[1753557701040,7.534,3748.2,3748.1,0.0346]
[1753557703332,8.0321,3748.2,3748.1,0.0346]
[1753557704154,3.456,3748.2,3748.1,0.0346]
[1753557704358,7.527,3748.2,3748.1,0.0346]
[1753557707560,3.456,3748.2,3748.1,0.0346]
[1753557707738,7.525,3748.2,3748.1,0.0346]
[1753557707942,8.18363762,3748.2,3748.1,0.0346]
[1753557708136,7.525,3748.2,3748.1,0.0346]
[1753557708653,10.19294728,3748.2,3748.1,0.0346]
[1753557708853,6.62204728,3748.2,3748.1,0.0346]
[1753557709055,8.0221,3748.2,3748.1,0.0346]
[1753557713949,7.524,3748.2,3748.1,0.0346]
[1753557714274,7.07,3748.2,3748.1,0.0346]
[1753557717184,10.68574728,3748.2,3748.1,0.001]
[1753557717378,10.81934728,3748.2,3748.1,0.001]
[1753557720351,12.18424728,3748.2,3748.1,0.001]
[1753557722592,49.36424728,3748.2,3748.1,0.001]
[1753557726886,19.36424728,3748.2,3748.1,0.001]
[1753557727078,49.36424728,3748.2,3748.1,0.001]
[1753557729667,48.41644728,3748.2,3748.1,0.001]
[1753557729991,49.0750849,3748.2,3748.1,0.001]
[1753557731259,49.32505002,3748.2,3748.1,0.001]
[1753557731781,44.5984124,3748.2,3748.1,0.001]
[1753557731983,48.6664124,3748.2,3748.1,0.001]
[1753557732874,48.41644728,3748.2,3748.1,0.001]
[1753557733052,44.34844728,3748.2,3748.1,0.001]
[1753557733251,48.41644728,3748.2,3748.1,0.4512]
[1753557733887,18.41644728,3748.2,3748.1,0.001]
[1753557734053,48.41644728,3748.2,3748.1,0.001]
[1753557735358,49.33294728,3748.2,3748.1,0.001]
[1753557735655,45.51483177,3748.2,3748.1,0.001]
[1753557735857,49.58283177,3748.2,3748.1,0.001]
[1753557736990,19.58283177,3748.2,3748.1,0.001]
[1753557737197,45.51481729,3748.2,3748.1,0.001]
[1753557737503,49.58281729,3748.2,3748.1,0.001]
[1753557737859,49.33294728,3748.2,3748.1,0.001]
[1753557738169,49.58279939,3748.2,3748.1,0.001]
[1753557738962,49.33294728,3748.2,3748.1,0.001]
[1753557740481,48.85114728,3748.2,3748.1,0.001]
[1753557742082,49.33294728,3748.2,3748.1,0.001]
[1753557743897,48.85114728,3748.2,3748.1,0.001]
[1753557744100,49.58285943,3748.2,3748.1,0.001]
[1753557744274,50.02131505,3748.2,3748.1,0.001]
[1753557744468,18.41644728,3748.2,3748.1,0.001]
[1753557744668,48.41644728,3748.2,3748.1,0.001]
[1753557745797,48.85114728,3748.2,3748.1,0.001]
[1753557746862,14.34844728,3748.2,3748.1,0.001]
[1753557747088,48.41644728,3748.2,3748.1,0.001]
[1753557748510,48.85114728,3748.2,3748.1,0.001]
[1753557748995,45.26494728,3748.2,3748.1,0.001]
[1753557749192,49.33294728,3748.2,3748.1,0.001]
[1753557751014,48.85114728,3748.2,3748.1,0.001]
[1753557754186,18.85114728,3748.2,3748.1,0.001]
[1753557754406,48.85114728,3748.2,3748.1,0.001]
[1753557755117,18.85114728,3748.2,3748.1,0.001]
[1753557755415,48.85114728,3748.2,3748.1,0.001]
[1753557755819,44.52463152,3748.2,3748.1,0.001]
[1753557755989,48.59263152,3748.2,3748.1,0.001]
[1753557756201,49.02733152,3748.2,3748.1,0.001]
[1753557756540,48.85114728,3748.2,3748.1,0.001]
[1753557757490,18.85114728,3748.2,3748.1,0.001]
[1753557757789,49.33294728,3748.2,3748.1,0.001]
[1753557757989,49.50913296,3748.2,3748.1,0.001]
[1753557760521,49.65926604,3748.2,3748.1,0.001]
[1753557761385,49.50913296,3748.2,3748.1,0.001]
[1753557763079,49.02733296,3748.2,3748.1,0.001]
[1753557763890,48.59263296,3748.2,3748.1,0.001]
[1753557764640,18.59263296,3748.2,3748.1,0.001]
[1753557764843,49.54063296,3748.2,3748.1,0.001]
[1753557768113,48.41544728,3748.2,3748.1,0.4845]
[1753557768270,47.60054728,3748.2,3748.1,0.4845]
[1753557771643,43.53354728,3748.2,3748.1,0.4845]
[1753557771839,47.60054728,3748.2,3748.1,0.4845]
[1753557772137,47.60054728,3748.2,3748.1,0.001]
[1753557777736,47.59954728,3748.2,3748.1,0.001]
[1753557778394,47.7757646,3748.2,3748.1,0.001]
[1753557778827,48.7237646,3748.2,3748.1,0.001]
[1753557782416,48.8739588,3748.2,3748.1,0.001]
[1753557783646,18.8739588,3748.2,3748.1,0.001]
[1753557783866,48.8739588,3748.2,3748.1,0.001]
[1753557784018,48.3843588,3748.2,3748.1,0.001]
[1753557784520,48.38436059,3748.2,3748.1,0.001]
[1753557785262,49.68776059,3748.2,3748.1,0.001]
[1753557786762,52.50149485,3748.2,3748.1,0.001]
[1753557787435,52.50153122,3748.2,3748.1,0.001]
[1753557788350,52.01193122,3748.2,3748.1,0.001]
[1753557788540,22.01193122,3748.2,3748.1,0.001]
[1753557788740,52.01193122,3748.2,3748.1,0.001]
[1753557789468,22.01193122,3748.2,3748.1,0.001]
[1753557789676,52.01193122,3748.2,3748.1,0.001]
[1753557790279,51.68548154,3748.2,3748.1,0.001]
[1753557790476,52.01191586,3748.2,3748.1,0.001]
[1753557791556,51.86172916,3748.2,3748.1,0.001]
[1753557792091,51.86072916,3748.2,3748.1,0.001]
[1753557792486,47.7747949,3748.2,3748.1,0.4761]
[1753557794958,17.7747949,3748.2,3748.1,0.4761]
[1753557795158,47.7747949,3748.2,3748.1,0.4761]
[1753557795691,50.58852916,3748.2,3748.1,0.001]
[1753557796585,46.5235273,3748.2,3748.1,0.001]
[1753557796894,50.5885273,3748.2,3748.1,0.001]
[1753557797284,46.5235273,3748.2,3748.1,0.4761]
[1753557797589,50.41228154,3748.2,3748.1,0.4761]
[1753557799209,46.34728154,3748.2,3748.1,0.4761]
[1753557799389,50.41228154,3748.2,3748.1,0.4761]
[1753557800379,50.41228154,3748.2,3748.1,0.001]
[1753557800991,51.04662344,3748.2,3748.1,0.001]
[1753557803219,50.58852344,3748.2,3748.1,0.001]
[1753557803710,50.58852252,3748.2,3748.1,0.001]
[1753557803911,47.77378826,3748.2,3748.1,0.4761]
[1753557806619,47.77378826,3748.2,3748.1,0.001]
[1753557806620,47.77378368,3748.2,3748.1,0.001]
[1753557809719,47.59754728,3748.2,3748.1,0.001]
[1753557811230,2.66801846,3748.1,3748.0,1e-08]
[1753557811427,42.19114659,3748.1,3748.0,1e-08]
[1753557811591,42.7522799,3748.1,3748.0,1e-08]
[1753557812437,1.3552,3747.4,3747.0,0.001]
[1753557812638,39.83766474,3747.1,3747.0,1e-08]
[1753557812924,39.83766474,3747.1,3746.4,0.10510987]
[1753557812925,6.21887293,3746.9,3746.4,0.10510987]
[1753557813223,10.28287293,3746.9,3746.4,0.10510987]
[1753557813421,41.21057293,3746.9,3746.4,0.10510987]
[1753557813727,41.21057293,3746.9,3746.4,0.58020987]
[1753557814223,5.66887293,3746.9,3746.4,0.10510987]
[1753557814390,9.73287293,3746.9,3746.8,0.9312]
[1753557815285,5.66887293,3746.9,3746.8,0.9312]
[1753557815522,2.66864641,3747.3,3746.8,0.9312]
[1753557815820,2.66873048,3747.1,3746.9,1.6724]
[1753557816017,4.064,3747.0,3746.9,0.7422]
[1753557816218,7.064,3747.0,3746.9,0.7422]
[1753557816722,7.064,3747.0,3746.9,1.6724]
[1753557816723,9.7328017,3747.0,3746.9,1.6724]
[1753557821200,7.064,3747.0,3746.9,1.6724]
[1753557821835,7.064,3747.0,3746.9,1.2173]
[1753557822006,3.0,3747.0,3746.9,1.6724]
[1753557822209,7.064,3747.0,3746.9,1.806]
[1753557826345,3.0,3747.0,3746.9,1.806]
[1753557826538,7.064,3747.0,3746.9,1.806]
[1753557828618,7.064,3747.0,3746.9,2.25380624]
[1753557829917,3.0,3747.0,3746.9,1.806]
[1753557830124,7.064,3747.0,3746.9,4.47487293]
[1753557830322,2.80179502,3747.9,3747.2,0.7422]
[1753557830323,2.66820883,3747.9,3747.2,0.7422]
[1753557830523,4.064,3747.8,3747.2,0.7422]
[1753557830754,3.0,3747.7,3747.4,0.1336]
[1753557830965,3.0,3747.5,3747.4,0.1336]
[1753557831632,3.0,3747.5,3747.4,1.0637]
[1753557832770,3.0,3747.5,3747.4,0.9301]
[1753557833274,4.064,3747.5,3747.4,1.85289]
[1753557833480,4.064,3747.5,3747.4,1.98649]
[1753557834353,4.063,3747.5,3747.4,1.98649]
[1753557834741,3.0,3748.0,3747.5,0.7422]
[1753557835077,4.063,3747.9,3747.6,0.9301]
[1753557835275,4.063,3747.9,3747.5,3.87613721]
[1753557835577,4.063,3747.9,3747.7,0.9301]
[1753557835870,4.063,3747.9,3747.7,0.4596]
[1753557836077,7.063,3747.9,3747.8,0.4705]
[1753557837050,9.73119102,3747.9,3747.6,0.6041]
[1753557837762,9.73119102,3747.9,3747.6,0.1336]
[1753557837946,9.73119102,3747.9,3747.7,0.4705]
[1753557838147,5.66819102,3747.9,3747.7,0.4705]
[1753557838380,4.063,3747.8,3747.7,0.4705]
[1753557843151,3.0,3747.7,3747.6,0.1336]
[1753557843351,3.0,3747.7,3747.6,0.6041]
[1753557845591,0.1356,3748.2,3747.6,1.52979684]
[1753557845774,0.002,3748.2,3747.7,0.95678303]
[1753557846094,4.062,3748.1,3747.9,0.7422]
[1753557846289,4.062,3748.1,3748.0,0.9301]
[1753557846593,0.002,3748.2,3748.1,3.41021846]
[1753557846893,0.002,3748.2,3748.1,1.91354458]
[1753557847058,0.002,3748.2,3748.1,1.2127]
[1753557849287,0.002,3748.2,3748.1,3.88071846]
[1753557849960,0.002,3748.2,3748.1,1.2127]
[1753557851592,0.002,3748.2,3748.1,3.88071846]
[1753557851974,0.002,3748.2,3748.1,1.2127]
[1753557856503,0.002,3748.2,3748.1,1.3463]
[1753557857687,0.002,3748.2,3748.1,4.89311589]
[1753557858164,0.002,3748.2,3748.1,4.91979607]
[1753557862196,0.002,3748.2,3748.1,4.89311589]
[1753557863082,0.002,3748.2,3748.1,1.32319743]
[1753557863271,0.002,3748.2,3748.1,0.8758]
[1753557863471,0.9497,3748.2,3748.1,0.1336]
[1753557864085,0.4616,3748.2,3748.1,0.1336]
[1753557864372,0.9497,3748.2,3748.1,0.1336]
[1753557864999,0.4616,3748.2,3748.1,0.1336]
[1753557865509,0.9497,3748.2,3748.1,0.1336]
[1753557866709,8.0097,3748.2,3748.1,0.1336]
[1753557867305,10.67764728,3748.2,3747.4,2.66849572]
[1753557867494,9.72994728,3748.2,3748.0,0.1336]
[1753557867815,0.9477,3748.1,3748.0,0.1336]
[1753557870116,0.4596,3748.1,3748.0,0.1336]
[1753557870531,0.9477,3748.1,3748.0,0.1336]
[1753557871099,6.61571846,3748.1,3748.0,0.1336]
[1753557872931,3.0,3748.0,3747.7,0.1336]
[1753557873238,2.66831316,3747.7,3747.5,0.1336]
[1753557873404,4.06,3747.6,3747.5,0.1336]
[1753557873738,5.0077,3747.6,3747.5,0.1336]
[1753557875708,3.8003,3747.5,3746.9,0.4894]
[1753557875906,6.46874978,3747.5,3746.9,0.4894]
[1753557876228,3.9477,3747.4,3747.2,0.1336]
[1753557876551,3.0,3747.2,3746.9,0.1346]
[1753557877039,0.4596,3747.1,3746.9,0.1346]
[1753557877241,4.06,3747.0,3746.9,0.1346]
[1753557879612,4.06,3747.0,3746.9,0.001]
[1753557879613,4.5196,3747.0,3746.9,0.001]
[1753557879940,5.0077,3747.0,3746.9,0.001]
[1753557884644,4.06,3747.0,3746.9,0.001]
[1753557886147,4.5145,3747.0,3746.9,0.001]
[1753557886645,4.06,3747.0,3746.9,0.001]
[1753557887424,4.5145,3747.0,3746.9,0.001]
[1753557888235,4.9803,3747.0,3746.9,0.001]
[1753557890739,5.7729,3747.0,3746.9,0.001]
[1753557892954,5.3071,3747.0,3746.9,0.001]
[1753557893338,8.3071,3747.0,3746.9,0.001]
[1753557894150,8.7729,3747.0,3746.9,0.001]
[1753557894657,11.4417017,3747.0,3746.9,0.001]
[1753557898155,11.5753017,3747.0,3746.9,0.001]
[1753557900043,11.5773017,3747.0,3746.9,0.001]
[1753557904430,41.5773017,3747.0,3746.9,0.001]
[1753557905660,11.5773017,3747.0,3746.9,0.001]
[1753557907990,10.6570017,3747.0,3746.9,0.001]
[1753557908143,11.1115017,3747.0,3746.9,0.001]
[1753557908756,7.5173017,3747.0,3746.9,0.001]
[1753557908960,11.5773017,3747.0,3746.9,0.001]
[1753557910374,9.8644017,3747.0,3746.9,0.001]
[1753557910668,9.8644017,3747.0,3746.9,0.4794]
[1753557911042,9.8644017,3747.0,3746.9,0.952]
[1753557911242,9.8644017,3747.0,3746.9,0.4794]
[1753557914173,7.1956,3747.0,3746.9,0.4794]
[1753557914374,7.062,3747.0,3746.9,0.9396]
[1753557914540,7.061,3747.0,3746.9,0.9396]
[1753557916171,3.002,3747.0,3746.9,0.9396]
[1753557916375,7.061,3747.0,3746.9,0.9396]
[1753557916678,7.061,3747.0,3746.9,0.4794]
[1753557921694,3.002,3747.0,3746.9,0.9396]
[1753557921844,7.061,3747.0,3746.9,2.05632751]
[1753557922045,7.061,3747.0,3746.9,1.8154]
[1753557925951,7.061,3747.0,3746.9,1.3552]
[1753557930007,7.061,3747.0,3746.9,0.613]
[1753557932193,7.061,3747.0,3746.9,0.1346]
[1753557932570,10.6306017,3747.0,3746.9,0.001]
[1753557937070,7.9618,3747.0,3746.9,0.001]
[1753557937784,10.6306017,3747.0,3746.9,0.001]
[1753557939205,7.9618,3747.0,3746.9,0.001]
[1753557939407,7.4971,3747.0,3746.9,0.001]
[1753557939767,10.1659017,3747.0,3746.9,0.001]
[1753557940271,10.6306017,3747.0,3746.9,0.001]
[1753557945213,10.1659017,3747.0,3746.9,0.001]
[1753557947518,10.6370017,3747.0,3746.9,0.001]
[1753557955451,9.7298017,3747.0,3746.9,0.4832]
[1753557956240,9.7298017,3747.0,3746.9,0.3332]
[1753557959249,5.66887293,3746.9,3746.8,0.001]
[1753557959457,5.66887293,3746.9,3746.8,0.4832]
[1753557962140,0.002,3747.0,3746.8,0.4832]
[1753557962349,7.056,3746.9,3746.8,0.4832]
[1753557962536,9.72487293,3746.9,3746.8,0.4832]
[1753557962741,7.056,3746.9,3746.8,0.4832]
[1753557962923,7.056,3746.9,3746.8,0.3332]
[1753557963812,7.056,3746.9,3746.8,0.3342]
[1753557967656,7.056,3746.9,3746.8,0.001]
[1753557972750,7.542,3746.9,3746.8,0.001]
[1753557973175,3.486,3746.9,3746.8,0.001]
[1753557973376,7.54,3746.9,3746.8,0.001]
[1753557980593,10.20887293,3746.9,3746.8,0.001]
[1753557984074,10.64037293,3746.9,3746.8,0.001]
[1753557986097,10.64237293,3746.9,3746.8,0.001]
[1753557992876,10.21087293,3746.9,3746.8,0.001]
[1753557996107,9.72487293,3746.9,3746.8,0.001]
[1753557996410,7.056,3746.9,3746.8,0.4732]
[1753557997809,7.056,3746.9,3746.8,0.001]
[1753557998118,9.72487293,3746.9,3746.8,0.001]
[1753557999917,7.056,3746.9,3746.8,0.001]
[1753558000815,3.002,3746.9,3746.8,0.001]
[1753558001003,7.054,3746.9,3746.8,0.001]
[1753558004491,9.72287293,3746.9,3746.8,0.001]
[1753558006993,5.67087293,3746.9,3746.8,0.001]
[1753558007720,9.72187293,3746.9,3746.8,0.001]
[1753558008820,14.24551371,3746.9,3746.8,0.001]
[1753558009122,14.37911371,3746.9,3746.8,0.001]
[1753558010321,9.85547293,3746.9,3746.8,0.001]
[1753558010523,11.56467293,3746.9,3746.8,0.001]
[1753558013128,3.1356,3746.9,3746.8,0.001]
[1753558013425,0.002,3746.9,3746.8,1.6392]
[1753558013626,0.002,3746.9,3746.8,1.80332]
[1753558014127,0.002,3746.9,3746.8,4.47226416]
[1753558014707,4.053,3746.9,3746.8,4.47226416]
[1753558017228,4.053,3746.9,3746.8,3.57626416]
[1753558017428,4.053,3746.9,3746.8,4.47226416]
[1753558023236,4.053,3746.9,3746.8,4.60586416]
[1753558025336,4.053,3746.9,3746.8,4.16096416]
[1753558026344,0.002,3746.9,3746.8,4.60586416]
[1753558029029,0.002,3746.9,3746.8,4.6325536]
[1753558029245,0.002,3746.9,3746.8,4.60586416]
[1753558036154,0.002,3746.9,3746.8,4.16096416]
[1753558043740,0.002,3746.9,3746.8,2.96766416]
[1753558051389,0.002,3746.9,3746.8,3.44886416]
[1753558052448,0.002,3746.9,3746.8,7.46822811]
[1753558053960,0.002,3746.9,3746.8,8.01822811]
[1753558054486,1e-08,3746.9,3746.8,8.01822811]
[1753558054689,0.002,3747.0,3746.8,8.01822811]
[1753558054690,1e-08,3747.0,3746.9,3.96107293]
[1753558054861,1e-08,3747.0,3746.9,10.84949977]
[1753558055185,1e-08,3747.0,3746.9,13.82281105]
[1753558056669,0.002,3747.7,3747.6,3.21837442]
[1753558056893,0.002,3747.7,3747.6,8.3560956]
[1753558057069,0.002,3747.7,3747.6,8.46301186]
[1753558057392,0.002,3747.7,3747.6,9.40801186]
[1753558061691,0.002,3747.8,3747.7,3.21830322]
[1753558061870,0.002,3747.8,3747.7,4.93218625]
[1753558062059,0.002,3747.8,3747.7,6.77825203]
[1753558062360,0.002,3747.8,3747.7,6.751569]
[1753558071585,0.002,3747.8,3747.7,6.287769]
[1753558072191,0.002,3747.8,3747.7,5.806569]
[1753558072399,0.9247,3747.8,3747.7,5.064369]
[1753558074307,0.4668,3747.8,3747.7,5.064369]
[1753558074490,0.002,3747.8,3747.7,5.09105203]
[1753558077217,0.002,3747.8,3747.7,5.83325203]
[1753558077374,0.002,3747.8,3747.7,6.739669]
[1753558078688,0.002,3747.8,3747.7,6.290369]
[1753558081192,0.002,3747.8,3747.7,6.739669]
[1753558081532,0.002,3748.2,3748.1,2.66801846]
[1753558081736,0.002,3748.2,3748.1,6.97882031]
[1753558082033,0.002,3748.2,3748.1,7.11242031]
[1753558082386,0.002,3748.2,3748.1,7.66242031]
[1753558083300,0.002,3748.2,3748.1,8.40462031]
[1753558083501,0.002,3748.2,3748.1,8.88842031]
[1753558083830,0.002,3748.2,3748.1,9.33772031]
[1753558084235,0.9247,3748.2,3748.1,7.11242031]
[1753558084439,0.9247,3748.2,3748.1,6.84561846]
[1753558085087,0.9247,3748.2,3748.1,2.80161846]
[1753558085290,0.9247,3748.2,3748.1,6.84461846]
[1753558085511,1.6916,3748.2,3748.1,6.84461846]
[1753558089589,1.2268,3748.2,3748.1,6.84461846]
[1753558089792,0.002,3748.2,3748.1,7.79589107]
[1753558092130,0.002,3748.2,3748.1,9.27899107]
[1753558092503,0.002,3748.2,3748.1,10.02119107]
[1753558095216,0.002,3748.2,3748.1,9.57189107]
[1753558097139,0.002,3748.2,3748.1,9.08809107]
[1753558098611,0.002,3748.2,3748.1,9.55979107]
[1753558100433,0.002,3748.2,3748.1,9.08809107]
[1753558103825,0.002,3748.2,3748.1,8.34589107]
[1753558111352,0.002,3748.2,3748.1,8.81759107]
[1753558112226,0.002,3748.2,3748.1,8.34589107]
[1753558117158,0.002,3748.2,3748.1,8.81759107]
[1753558120427,0.002,3748.2,3748.1,8.34589107]
[1753558122666,0.4429,3748.2,3748.1,3.75289107]
[1753558122825,0.899,3748.2,3748.1,6.84261846]
[1753558125775,0.002,3748.2,3748.1,6.84261846]
[1753558129766,0.4581,3748.2,3748.1,6.84261846]
[1753558129962,0.899,3748.2,3748.1,6.84261846]
[1753558130736,0.4581,3748.2,3748.1,6.84261846]
[1753558130937,0.899,3748.2,3748.1,6.84261846]
[1753558133368,0.4581,3748.2,3748.1,6.84261846]
[1753558133571,0.002,3748.2,3748.1,7.79379107]
[1753558134865,0.899,3748.2,3748.1,7.79379107]
[1753558141279,0.4581,3748.2,3748.1,7.79379107]
[1753558141656,0.899,3748.2,3748.1,7.79379107]
[1753558142874,1.7235,3748.2,3748.1,2.80161846]
[1753558143073,1.7235,3748.2,3748.1,0.1336]
[1753558145672,1.7235,3748.2,3748.1,2.80161846]
[1753558151454,0.002,3748.2,3748.1,7.33681846]
[1753558151752,0.002,3748.2,3748.1,8.33741106]
[1753558151953,0.002,3748.2,3748.1,8.78511106]
[1753558157208,0.002,3748.2,3748.1,8.33741106]
[1753558158213,0.002,3748.2,3748.1,7.84221106]
[1753558160390,0.9241,3748.2,3748.1,7.84221106]
[1753558160986,0.4552,3748.2,3748.1,7.84221106]
[1753558163112,0.002,3748.2,3748.1,7.84221106]
[1753558166883,0.002,3748.2,3748.1,6.84161846]
[1753558168519,0.4552,3748.2,3748.1,6.84161846]
[1753558170814,0.002,3748.2,3748.1,6.84161846]
[1753558178027,0.9241,3748.2,3748.1,6.84161846]
[1753558178609,0.4552,3748.2,3748.1,6.84161846]
[1753558180229,0.002,3748.2,3748.1,6.84161846]
[1753558182010,0.4552,3748.2,3748.1,6.84161846]
[1753558182619,0.4552,3748.2,3748.1,2.80161846]
[1753558182620,0.002,3748.2,3748.1,2.80161846]
[1753558182932,0.9061,3748.2,3748.1,6.83961846]
[1753558183438,0.002,3748.2,3748.1,4.1716]
[1753558183602,0.9061,3748.2,3748.1,4.1716]
[1753558183800,0.9061,3748.2,3748.1,6.83961846]
[1753558190936,1.7171,3748.2,3748.1,4.1716]
[1753558191253,1.7171,3748.2,3747.8,0.001]
[1753558191254,0.811,3748.1,3747.8,0.001]
[1753558191413,0.811,3748.1,3747.9,0.1336]
[1753558191414,1.7151,3748.1,3747.9,0.1336]
[1753558191615,0.9041,3748.0,3747.9,0.1336]
[1753558191813,1.7151,3748.0,3747.9,0.1336]
[1753558200229,0.002,3748.2,3747.9,0.1336]
[1753558200552,0.002,3748.2,3748.1,2.80161846]
[1753558201067,0.002,3748.2,3748.1,3.29331846]
[1753558201455,0.002,3748.2,3748.1,4.50599864]
[1753558201644,0.002,3748.2,3748.1,5.99623387]
[1753558201842,0.002,3748.2,3748.1,5.96955369]
[1753558214190,0.002,3748.4,3748.3,2.6678761]
[1753558214396,0.002,3748.4,3748.3,11.71194769]
[1753558214689,0.002,3748.4,3748.3,12.73156893]
[1753558214870,0.002,3748.4,3748.3,14.42055119]
[1753558216067,1e-08,3748.4,3748.3,14.42055119]
[1753558222471,1e-08,3748.6,3748.5,1.2922]
[1753558222677,1e-08,3748.6,3748.5,11.02161109]
[1753558222860,1e-08,3748.6,3748.5,12.04123376]
[1753558223191,1e-08,3748.6,3748.5,14.07028201]
[1753558226795,1e-08,3748.6,3748.5,13.61118201]
[1753558229604,1e-08,3748.6,3748.5,14.07028201]
[1753558235026,1e-08,3748.6,3748.5,13.61118201]
[1753558235327,1e-08,3748.6,3748.5,13.15758201]
[1753558238218,1e-08,3748.6,3748.5,13.61118201]
[1753558240702,1e-08,3748.6,3748.5,13.15758201]
[1753558241034,1e-08,3748.6,3748.5,14.07028201]
[1753558245940,1e-08,3748.6,3748.5,13.61118201]
[1753558248525,1e-08,3748.6,3748.5,13.61218201]
[1753558249345,1e-08,3748.6,3748.5,13.15858201]
[1753558258704,1e-08,3748.6,3748.5,15.96804859]
[1753558258910,0.4515,3748.9,3748.8,6.21752027]